bitfinex/quotes_ETHUSD_20240604
["timestamp","ask_amount","ask_price","bid_price","bid_amount"]
[1717505204528,3.40802,3762.2,3762.0,0.806]
[1717505205757,3.40802,3762.2,3761.4,2.65857]
[1717505205959,3.40802,3762.2,3762.0,0.806]
[1717505206563,3.40802,3762.2,3762.1,0.08786199]
[1717505210800,9.77200577,3762.2,3762.1,0.08786199]
[1717505210941,13.57800577,3762.2,3762.1,0.08786199]
[1717505211140,2.65856,3761.5,3760.8,0.806]
[1717505211390,2.65856,3761.5,3760.9,0.08533352]
[1717505211391,2.2771,3761.4,3760.9,0.08533352]
[1717505211747,2.65865,3761.3,3760.2,2.3409]
[1717505212096,0.75,3761.1,3760.3,0.58536954]
[1717505213977,2.65887,3761.0,3760.3,0.58536954]
[1717505215369,2.65887,3761.0,3760.3,0.08533454]
[1717505215687,0.75,3760.9,3760.3,0.08533454]
[1717505215847,0.75,3760.9,3760.1,2.65945]
[1717505216049,0.75,3760.9,3760.4,0.0855917]
[1717505216246,0.75,3760.9,3760.1,2.65945]
[1717505216548,0.75,3760.9,3760.1,3.204995]
[1717505216773,0.75,3760.9,3760.2,0.08559204]
[1717505221951,2.65887,3761.0,3760.2,0.08559204]
[1717505222176,3.40887,3761.0,3760.2,0.08559204]
[1717505225071,0.75,3761.0,3760.3,5.06414]
[1717505225275,7.93574,3761.4,3760.4,0.7631277]
[1717505225592,0.75,3761.1,3760.4,0.84877092]
[1717505226760,0.75,3761.1,3760.5,2.65916]
[1717505227017,0.75,3761.2,3760.7,2.65905]
[1717505227155,2.65837,3761.7,3760.8,0.46806334]
[1717505227156,0.75,3761.4,3760.8,0.46806334]
[1717505227362,0.75,3761.4,3760.9,0.0855235]
[1717505227699,0.75,3761.4,3760.7,2.65905]
[1717505227891,0.75,3761.4,3761.0,0.08552333]
[1717505228094,0.75,3761.4,3760.7,2.65905]
[1717505228428,0.75,3761.4,3760.8,0.08552367]
[1717505230107,2.65874,3761.2,3760.8,0.08552367]
[1717505230411,2.65874,3761.2,3760.4,2.65928]
[1717505230607,2.65874,3761.2,3760.9,0.08548784]
[1717505230782,2.65874,3761.2,3760.4,2.65928]
[1717505230976,2.65874,3761.2,3761.0,0.08548767]
[1717505231192,3.2959977,3761.2,3760.4,2.65928]
[1717505231409,3.2959977,3761.2,3761.1,0.0854875]
[1717505231728,3.2959977,3761.2,3760.4,2.65928]
[1717505232304,3.2959977,3761.2,3760.5,0.08548852]
[1717505233869,3.2959977,3761.2,3761.0,0.807]
[1717505234066,0.70098347,3761.1,3761.0,0.807]
[1717505234671,0.70098347,3761.1,3759.3,2.66006]
[1717505234672,2.3207,3760.9,3759.3,2.4249]
[1717505234806,2.3207,3760.9,3760.4,0.807]
[1717505235128,2.659,3760.8,3760.6,0.807]
[1717505235288,0.49797,3760.7,3760.6,0.807]
[1717505235687,1.24797,3760.7,3760.6,0.807]
[1717505238332,0.75,3760.7,3760.6,0.807]
[1717505239113,2.3207,3760.9,3760.6,0.807]
[1717505239303,2.3207,3760.9,3760.8,0.807]
[1717505239711,3.0707,3760.9,3760.8,0.807]
[1717505240438,0.75,3760.9,3760.8,0.807]
[1717505240664,0.75,3760.9,3760.8,0.887436]
[1717505245218,0.57488515,3761.0,3760.8,0.887436]
[1717505245437,0.57488515,3761.2,3760.8,0.887436]
[1717505245592,0.57488515,3761.2,3760.8,0.080436]
[1717505245593,0.75,3761.1,3760.8,0.080436]
[1717505245796,0.75,3761.1,3761.0,0.807]
[1717505246449,4.34936577,3761.1,3760.1,1.38644142]
[1717505246749,2.65893,3760.9,3760.8,0.807]
[1717505246916,3.23383596,3760.9,3760.8,0.807]
[1717505248237,3.23383596,3760.9,3760.1,2.65949]
[1717505248406,0.57490596,3760.8,3760.1,2.65949]
[1717505248753,0.57490596,3760.8,3760.7,0.807]
[1717505249711,0.75,3760.9,3760.7,0.807]
[1717505249909,0.75,3760.9,3760.8,0.807]
[1717505250594,0.57490596,3761.1,3760.8,0.807]
[1717505250826,0.57490596,3761.1,3761.0,0.807]
[1717505251056,0.75,3761.1,3761.0,0.807]
[1717505253068,1.32482922,3761.1,3761.0,0.807]
[1717505254792,1.32482922,3761.1,3760.3,4.04561541]
[1717505254933,1.32482922,3761.1,3761.0,0.807]
[1717505258426,1.32484659,3761.1,3761.0,0.807]
[1717505259630,0.75,3761.1,3761.0,0.807]
[1717505259839,1.32483244,3761.1,3761.0,0.807]
[1717505262886,3.63313244,3761.1,3760.6,1.38633407]
[1717505263041,4.5183887,3761.1,3761.0,0.88456891]
[1717505263242,4.5183887,3761.1,3761.0,0.807]
[1717505263454,4.5183887,3761.1,3761.0,0.88456891]
[1717505263663,7.5183887,3761.1,3761.0,0.88456891]
[1717505264406,7.5183887,3761.1,3761.0,0.807]
[1717505264750,4.32483244,3761.1,3761.0,0.807]
[1717505264988,0.75,3761.1,3761.0,0.807]
[1717505265221,0.75,3761.1,3761.0,0.88456891]
[1717505265431,5.31,3761.3,3761.0,0.88456891]
[1717505265695,6.06,3761.3,3761.2,0.807]
[1717505266019,5.88481047,3761.3,3761.2,0.07756857]
[1717505266239,5.88481047,3761.3,3760.8,4.0452753]
[1717505266519,5.31,3761.3,3761.2,0.88456857]
[1717505266723,5.31,3761.3,3761.2,0.807]
[1717505266921,5.31,3761.3,3761.2,0.88456857]
[1717505270142,5.31,3761.3,3761.2,0.07756857]
[1717505270350,6.591,3761.3,3761.2,0.07756857]
[1717505270520,6.591,3761.3,3761.2,0.807]
[1717505270700,6.591,3761.3,3761.2,0.88456857]
[1717505272627,6.591,3761.3,3761.2,0.07756857]
[1717505272834,6.591,3761.3,3761.2,0.807]
[1717505273149,6.591,3761.3,3761.2,0.88459627]
[1717505273355,9.0631,3761.3,3761.2,0.07759627]
[1717505273677,2.65876,3761.2,3760.5,4.04557203]
[1717505273947,3.56507,3761.2,3761.1,0.807]
[1717505275121,3.56507,3761.2,3760.5,2.65921]
[1717505275446,3.56507,3761.2,3761.1,0.807]
[1717505276368,3.56507,3761.2,3760.4,1.38646473]
[1717505276570,3.0,3761.1,3761.0,0.807]
[1717505276785,4.562817,3761.1,3761.0,0.807]
[1717505277130,4.562817,3761.1,3760.3,1.38646473]
[1717505277329,2.65892,3761.0,3760.4,0.9243282]
[1717505277647,2.65892,3761.0,3760.9,0.807]
[1717505279132,2.65892,3761.0,3760.3,1.38646473]
[1717505279354,4.3249347,3761.0,3760.1,1.38646473]
[1717505279682,4.3249347,3761.0,3760.9,0.807]
[1717505280187,4.3249347,3761.0,3760.1,1.38646473]
[1717505280407,2.4132,3760.7,3760.0,1.38646473]
[1717505280609,2.4132,3760.7,3760.6,0.807]
[1717505280921,2.4132,3760.7,3760.6,0.88008354]
[1717505280922,3.83702847,3760.7,3760.6,0.88008354]
[1717505281093,3.83702847,3760.7,3760.6,0.07308354]
[1717505281304,2.65922,3760.5,3760.0,1.38646473]
[1717505281459,2.65922,3760.5,3760.4,0.807]
[1717505281656,2.65922,3760.5,3759.8,1.38646473]
[1717505281861,2.65922,3760.5,3760.4,0.807]
[1717505282062,3.30884485,3760.5,3760.4,0.807]
[1717505282255,3.30884485,3760.5,3760.4,0.88008388]
[1717505282856,0.75,3760.7,3760.4,0.88008388]
[1717505283088,0.75,3760.7,3760.6,0.807]
[1717505283617,0.75,3760.7,3760.6,0.07308354]
[1717505283843,3.0915,3760.7,3760.6,0.07308354]
[1717505283976,2.65915,3760.6,3760.5,0.807]
[1717505284163,2.9683,3760.6,3760.5,0.07308371]
[1717505284690,5.9683,3760.6,3759.7,1.38646473]
[1717505284881,5.9683,3760.6,3760.5,0.07308371]
[1717505285084,5.9683,3760.6,3759.7,1.38646473]
[1717505285278,5.65922,3760.5,3760.4,0.807]
[1717505285502,6.865207,3760.5,3760.4,0.807]
[1717505285708,6.865207,3760.5,3760.2,0.807]
[1717505285873,6.865207,3760.5,3760.4,0.807]
[1717505286606,6.865207,3760.5,3760.3,0.807]
[1717505288009,6.865207,3760.5,3760.4,0.07308388]
[1717505288166,6.865207,3760.5,3760.3,0.807]
[1717505288578,6.865207,3760.5,3760.4,0.07308388]
[1717505288807,6.865207,3760.5,3760.3,0.807]
[1717505288996,1.0265857,3760.4,3760.3,0.807]
[1717505289715,1.0265857,3760.4,3759.7,7.32]
[1717505289911,5.65922,3760.5,3760.3,0.807]
[1717505290721,5.65922,3760.5,3759.7,7.32]
[1717505290889,5.65922,3760.5,3760.4,0.807]
[1717505293616,5.65922,3760.5,3759.7,7.32]
[1717505293827,5.65922,3760.5,3760.4,0.807]
[1717505294120,6.565207,3760.5,3759.7,7.32]
[1717505294275,5.65922,3760.5,3760.4,0.07325348]
[1717505294470,5.65922,3760.5,3760.3,0.807]
[1717505294671,5.65922,3760.5,3760.4,0.07325348]
[1717505294906,5.65922,3760.5,3760.3,0.807]
[1717505295222,5.65922,3760.5,3760.4,0.07325348]
[1717505295416,6.565207,3760.5,3760.4,0.07325348]
[1717505295607,6.565207,3760.5,3760.3,0.807]
[1717505295920,6.565207,3760.5,3760.4,0.07325348]
[1717505296121,6.565207,3760.5,3760.3,0.807]
[1717505296308,6.565207,3760.5,3759.7,7.32]
[1717505296615,5.65922,3760.5,3760.4,0.88025348]
[1717505296822,5.65922,3760.5,3760.4,0.807]
[1717505297220,5.65922,3760.5,3759.7,7.32]
[1717505297417,5.65922,3760.5,3760.1,0.807]
[1717505297821,5.65922,3760.5,3760.2,0.07325382]
[1717505298009,5.65922,3760.5,3759.7,7.32]
[1717505298205,5.65922,3760.5,3760.4,0.807]
[1717505299439,5.65922,3760.5,3759.7,7.32]
[1717505299737,5.65922,3760.5,3760.4,0.807]
[1717505304835,5.65922,3760.5,3760.4,0.88027715]
[1717505306755,3.0,3760.5,3760.4,0.88027715]
[1717505306911,3.75,3760.7,3760.4,0.88027715]
[1717505307113,3.75,3760.7,3760.6,0.807]
[1717505314150,3.75,3760.7,3760.6,0.88040303]
[1717505315749,4.390901,3760.7,3760.6,0.07340303]
[1717505315947,4.390901,3760.7,3760.6,0.88040303]
[1717505316286,4.390901,3760.7,3760.6,0.807]
[1717505316654,2.65921,3760.6,3759.8,2.4249]
[1717505316852,3.05015195,3760.5,3759.8,2.4249]
[1717505317092,3.0,3760.5,3760.4,0.807]
[1717505317279,4.2324711,3760.5,3760.4,0.807]
[1717505318499,2.65934,3760.4,3759.8,2.4249]
[1717505318701,2.65934,3760.4,3760.3,0.807]
[1717505318991,5.65934,3760.4,3760.3,0.807]
[1717505319358,5.65934,3760.4,3759.8,2.4249]
[1717505319559,5.65934,3760.4,3760.3,0.807]
[1717505320655,5.65934,3760.4,3759.8,2.4249]
[1717505321096,5.65934,3760.4,3760.3,0.807]
[1717505322712,5.65934,3760.4,3760.3,0.88008405]
[1717505322875,5.65934,3760.4,3760.3,0.807]
[1717505323583,5.65934,3760.4,3760.3,0.88008405]
[1717505323762,5.65934,3760.4,3760.3,0.807]
[1717505324394,5.65934,3760.4,3760.3,0.07308405]
[1717505324586,5.65934,3760.4,3760.3,0.88008405]
[1717505324784,5.65934,3760.4,3759.8,2.4249]
[1717505324973,5.65934,3760.4,3760.3,0.807]
[1717505325697,5.65934,3760.4,3760.3,0.88008405]
[1717505325892,5.65934,3760.4,3760.3,0.07308405]
[1717505326095,5.65934,3760.4,3759.8,2.4249]
[1717505326395,5.65934,3760.4,3760.3,0.88008405]
[1717505326595,5.65934,3760.4,3760.3,0.807]
[1717505326799,6.300274,3760.4,3760.3,0.07322999]
[1717505327006,6.300274,3760.4,3760.3,0.807]
[1717505327204,6.300274,3760.4,3759.6,0.55785718]
[1717505327365,6.300274,3760.4,3760.2,0.807]
[1717505327791,6.300274,3760.4,3760.3,0.07322999]
[1717505328190,6.300274,3760.4,3760.2,0.807]
[1717505328578,6.300274,3760.4,3760.3,0.07322999]
[1717505328881,6.300274,3760.4,3760.2,0.807]
[1717505329107,6.300274,3760.4,3760.3,0.07322999]
[1717505329292,6.300274,3760.4,3760.2,0.807]
[1717505329493,6.300274,3760.4,3760.3,0.07322999]
[1717505329795,6.300274,3760.4,3760.2,0.807]
[1717505330307,6.300274,3760.4,3760.3,0.07322999]
[1717505330503,6.87529628,3760.4,3759.5,2.88225718]
[1717505330680,5.65934,3760.4,3760.3,0.88022999]
[1717505330881,6.23436299,3760.4,3760.3,0.807]
[1717505331079,6.23436299,3760.4,3760.3,0.88022999]
[1717505331482,6.23436299,3760.4,3760.3,0.07322999]
[1717505331696,6.23436299,3760.4,3760.3,0.807]
[1717505331862,6.93279929,3760.4,3760.3,0.88022999]
[1717505333219,6.93279929,3760.4,3760.3,0.07322999]
[1717505333529,6.3577763,3760.4,3760.3,0.807]
[1717505333829,6.93279429,3760.4,3760.3,0.88022999]
[1717505334038,6.93279429,3760.4,3760.3,0.07322999]
[1717505334226,9.42279429,3760.4,3760.3,0.07322999]
[1717505334400,2.6595,3760.1,3760.0,0.807]
[1717505334602,6.23451799,3760.1,3760.0,0.807]
[1717505334940,6.23451799,3760.1,3760.0,0.8802305]
[1717505336811,6.23451799,3760.1,3760.0,0.0732305]
[1717505337017,6.23451799,3760.1,3760.0,0.8802305]
[1717505337174,6.23451799,3760.1,3760.0,0.807]
[1717505337373,6.23451799,3760.1,3760.0,0.8802305]
[1717505342919,6.23454292,3760.1,3760.0,0.807]
[1717505343222,6.23454292,3760.1,3760.0,0.88034886]
[1717505343517,6.98454292,3760.1,3760.0,0.88034886]
[1717505344018,7.68299721,3760.1,3760.0,0.07334886]
[1717505344393,2.65971,3759.8,3759.4,2.4938]
[1717505344606,0.57504292,3759.7,3759.4,2.4938]
[1717505344784,3.57504292,3759.7,3759.6,0.807]
[1717505344984,3.57504292,3759.7,3759.4,2.4938]
[1717505345221,3.0,3759.7,3759.6,0.807]
[1717505345528,3.57507069,3759.7,3759.6,0.807]
[1717505345984,3.57507069,3759.7,3759.4,2.4938]
[1717505346184,3.0,3759.7,3759.6,0.807]
[1717505346411,3.57507227,3759.7,3759.6,0.807]
[1717505348914,3.57507227,3759.7,3759.4,2.4938]
[1717505349119,3.57507227,3759.7,3759.6,0.807]
[1717505349306,3.57506474,3759.7,3759.6,0.807]
[1717505350501,3.57506474,3759.7,3759.4,2.4938]
[1717505350502,0.57506474,3759.7,3759.4,2.4938]
[1717505350703,0.57506474,3759.7,3759.6,0.807]
[1717505351217,0.57506474,3759.9,3759.6,0.807]
[1717505351430,0.75,3759.8,3759.4,3.14788632]
[1717505351585,0.75,3759.8,3759.7,0.807]
[1717505353026,0.75,3759.8,3759.7,0.88037304]
[1717505353990,0.75,3759.8,3759.7,0.07337304]
[1717505354189,0.75,3759.8,3759.7,0.88037304]
[1717505354418,0.75,3759.8,3759.7,0.807]
[1717505354623,0.75,3759.8,3759.7,0.88037304]
[1717505355194,0.75,3759.8,3759.7,0.07337304]
[1717505355536,0.75,3759.8,3759.7,0.807]
[1717505355849,0.75,3759.8,3759.7,0.88037304]
[1717505356199,0.75,3759.8,3759.7,0.07337304]
[1717505356543,1.32506039,3759.8,3759.7,0.807]
[1717505356842,4.32506039,3759.8,3759.7,0.88037304]
[1717505362194,4.32506039,3759.8,3759.7,0.07337304]
[1717505362400,4.32506039,3759.8,3759.7,0.88037304]
[1717505362600,4.32506039,3759.8,3759.7,0.807]
[1717505362856,4.32506039,3759.8,3759.7,0.88036911]
[1717505363149,4.32506889,3759.8,3759.7,0.88036911]
[1717505364757,4.3250688,3759.8,3759.7,0.88036911]
[1717505365051,4.3250688,3759.8,3759.7,3.16856911]
[1717505365206,1.3250688,3759.8,3759.7,3.48542602]
[1717505365542,0.5750688,3760.8,3759.7,4.40995097]
[1717505365717,2.65907,3760.7,3760.6,0.807]
[1717505366041,0.75,3760.2,3759.7,2.2882]
[1717505366254,0.75,3760.2,3760.1,0.807]
[1717505366409,1.32501057,3760.2,3760.1,0.807]
[1717505368053,1.32501057,3760.2,3760.1,0.88063272]
[1717505369558,4.36474363,3760.2,3760.1,0.07363272]
[1717505369720,7.36474363,3760.2,3760.1,0.807]
[1717505369924,7.36474363,3760.2,3760.1,0.88049464]
[1717505374766,7.36474363,3760.2,3760.1,0.07349464]
[1717505374923,7.36474363,3760.2,3760.1,0.807]
[1717505375122,5.02344363,3760.2,3760.1,0.88042758]
[1717505375379,5.02344363,3760.2,3760.1,0.07342758]
[1717505375567,2.6595,3760.1,3759.5,1.38682694]
[1717505375868,0.57501057,3760.0,3759.6,0.92455821]
[1717505376069,0.57501057,3760.0,3759.9,0.807]
[1717505382558,1.32501057,3760.2,3759.9,0.807]
[1717505382759,1.32501057,3760.2,3760.1,0.807]
[1717505383149,1.32501057,3760.2,3760.1,0.88040784]
[1717505384414,1.32501057,3760.2,3760.1,0.07340784]
[1717505384556,1.32502264,3760.2,3760.1,0.88040784]
[1717505385302,1.32502833,3760.2,3760.1,0.88040784]
[1717505386107,1.32502796,3760.2,3760.1,0.88040784]
[1717505396425,1.32500031,3760.2,3760.1,0.88040784]
[1717505398140,1.32499807,3760.2,3760.1,0.88040784]
[1717505401360,1.32499807,3760.2,3760.1,3.23220784]
[1717505401515,0.57493082,3761.0,3760.1,6.01053734]
[1717505401727,0.57493082,3760.9,3760.2,2.31091426]
[1717505402037,0.75,3760.6,3760.3,0.07332465]
[1717505402239,0.75,3760.6,3760.5,0.807]
[1717505402744,0.75,3760.6,3760.5,0.88032431]
[1717505404158,0.57493082,3760.8,3760.5,0.88032431]
[1717505404296,0.57493082,3760.8,3760.7,0.807]
[1717505404662,1.32493082,3760.8,3760.7,0.88017017]
[1717505410542,2.43708167,3760.8,3760.7,0.88017017]
[1717505410743,4.93338167,3760.8,3760.7,0.07317017]
[1717505410954,7.93338167,3760.8,3760.7,0.07317017]
[1717505411152,2.65917,3760.6,3760.0,1.38653735]
[1717505411359,2.65929,3760.4,3760.0,0.807]
[1717505411645,0.57493082,3760.3,3760.1,0.07317119]
[1717505411854,2.65943,3760.2,3760.1,0.07317119]
[1717505412056,5.73066082,3760.2,3759.4,2.4846]
[1717505412356,0.57493082,3760.1,3760.0,0.807]
[1717505412558,1.32493082,3760.1,3760.0,0.807]
[1717505412707,1.32493082,3760.1,3760.0,0.88011614]
[1717505413128,1.32493082,3760.1,3760.0,0.07311614]
[1717505413339,1.32493082,3760.1,3760.0,0.88011614]
[1717505413542,1.32493082,3760.1,3760.0,0.807]
[1717505413710,1.32493082,3760.1,3760.0,0.88011614]
[1717505414139,1.32493082,3760.1,3760.0,0.07311614]
[1717505414336,1.32493082,3760.1,3760.0,0.88011614]
[1717505414535,1.32493082,3760.1,3760.0,0.807]
[1717505414732,1.32493082,3760.1,3760.0,0.88011614]
[1717505420412,1.32493082,3760.1,3760.0,0.07311614]
[1717505420634,1.32493082,3760.1,3760.0,0.88011614]
[1717505421045,1.9729969,3760.1,3760.0,0.07311614]
[1717505421249,1.9729969,3760.1,3759.4,1.38676274]
[1717505421449,1.32493082,3760.1,3760.0,0.807]
[1717505421649,1.32493082,3760.1,3760.0,0.88035674]
[1717505422256,1.32493082,3760.1,3760.0,0.07335674]
[1717505422538,1.32493082,3760.1,3760.0,0.807]
[1717505422539,1.32503472,3760.1,3760.0,0.807]
[1717505422740,1.32503472,3760.1,3760.0,0.88035674]
[1717505423147,1.32503472,3760.1,3760.0,0.07335674]
[1717505423343,1.32503472,3760.1,3760.0,0.88035674]
[1717505423702,1.32503472,3760.1,3760.0,0.07335674]
[1717505423909,1.32503472,3760.1,3760.0,0.88035674]
[1717505424048,1.32503472,3760.1,3760.0,0.807]
[1717505424249,1.32503472,3760.1,3760.0,0.88035674]
[1717505429569,0.75,3760.1,3760.0,0.88035674]
[1717505430597,0.75,3760.1,3760.0,0.07335674]
[1717505430924,0.75,3760.1,3760.0,0.807]
[1717505431222,0.75,3760.1,3760.0,0.88049478]
[1717505431827,0.75,3760.1,3760.0,0.91052548]
[1717505432022,1.3250196,3760.1,3760.0,0.91052548]
[1717505432829,0.75,3760.1,3760.0,0.91052548]
[1717505433221,1.32501429,3760.1,3760.0,0.91052548]
[1717505433938,3.61941429,3760.1,3760.0,0.10352548]
[1717505434113,4.01785872,3760.1,3760.0,0.91052548]
[1717505434318,4.01785872,3760.1,3759.5,2.65988]
[1717505434503,3.0444,3760.1,3760.0,0.91054915]
[1717505434702,2.6596,3760.0,3759.3,1.38681227]
[1717505435045,0.57503746,3759.9,3759.8,0.807]
[1717505435542,2.65974,3759.8,3759.5,0.807]
[1717505436155,0.57507529,3759.7,3759.5,0.807]
[1717505436304,5.10017,3759.6,3759.1,1.38690528]
[1717505436504,0.57509817,3759.5,3759.4,0.807]
[1717505438542,2.65987,3759.6,3759.4,0.807]
[1717505440922,2.4264,3759.5,3758.9,2.66033]
[1717505441265,2.4264,3759.5,3759.4,0.807]
[1717505441454,3.00152014,3759.5,3759.4,0.807]
[1717505443160,3.00152014,3759.5,3759.4,0.91055497]
[1717505443560,0.57512014,3759.5,3759.4,0.91055497]
[1717505444468,2.65987,3759.6,3759.4,0.91055497]
[1717505445173,3.57510555,3759.5,3759.4,0.10355497]
[1717505445467,2.66009,3759.3,3758.6,2.4438275]
[1717505445717,2.66009,3759.3,3759.2,0.807]
[1717505445917,3.23526915,3759.3,3759.2,0.807]
[1717505446216,3.98526915,3759.3,3759.2,0.10380154]
[1717505446415,6.08523654,3759.3,3759.2,0.10380154]
[1717505446587,6.08523654,3759.3,3758.6,0.0249275]
[1717505446588,2.66037,3758.9,3758.6,0.0249275]
[1717505446783,2.66037,3758.9,3758.8,0.807]
[1717505446984,3.41037,3758.9,3758.8,0.807]
[1717505447586,3.41037,3758.9,3758.6,0.0249275]
[1717505447911,3.41037,3758.9,3758.8,0.807]
[1717505448690,3.41037,3758.9,3758.6,0.0249275]
[1717505448890,3.41037,3758.9,3758.7,0.10380638]
[1717505449097,3.41037,3758.9,3758.8,0.807]
[1717505449312,3.751407,3758.9,3758.6,0.0249275]
[1717505449477,2.66049,3758.7,3758.6,0.0249275]
[1717505449675,2.66049,3758.7,3758.6,0.8319275]
[1717505449874,2.66049,3758.7,3758.6,0.93573485]
[1717505450704,2.66049,3758.7,3758.6,0.12873485]
[1717505450887,5.66049,3758.7,3758.6,0.0249275]
[1717505453404,6.5641227,3758.7,3758.6,0.0249275]
[1717505460822,5.66049,3758.7,3758.6,0.8319275]
[1717505463005,5.66049,3758.7,3758.6,0.93672951]
[1717505463402,3.0,3758.7,3758.6,0.93672951]
[1717505463585,3.0,3758.7,3758.6,3.36432951]
[1717505464191,3.75,3758.9,3758.6,3.36432951]
[1717505464411,3.75,3758.9,3758.8,0.807]
[1717505464903,3.75,3758.9,3758.8,0.91180007]
[1717505465298,0.75,3758.9,3758.8,5.35345283]
[1717505465485,8.32,3759.3,3758.8,5.35345283]
[1717505465690,8.32,3759.3,3759.2,0.807]
[1717505465946,9.07,3759.3,3759.2,0.91160669]
[1717505466229,9.07,3759.3,3759.2,0.10460669]
[1717505466394,12.903046,3759.3,3759.2,0.10460669]
[1717505466593,12.903046,3759.3,3758.9,0.807]
[1717505466820,12.903046,3759.3,3759.2,0.104583]
[1717505467025,12.903046,3759.3,3758.6,0.0249275]
[1717505467026,2.66028,3759.0,3758.6,0.0249275]
[1717505467228,3.0,3758.9,3758.6,0.0249275]
[1717505467436,2.66042,3758.8,3758.7,0.10458785]
[1717505467806,2.66042,3758.8,3758.6,0.0249275]
[1717505467999,5.66042,3758.8,3758.7,0.807]
[1717505468730,5.66042,3758.8,3758.6,0.0249275]
[1717505469026,3.0,3758.7,3758.6,0.0249275]
[1717505470145,3.0,3758.7,3758.6,0.8319275]
[1717505471132,3.0,3758.7,3758.6,0.12950055]
[1717505471437,3.0,3758.7,3758.6,0.93650055]
[1717505472331,0.75,3758.8,3758.6,0.93650055]
[1717505472669,0.75,3758.8,3758.6,0.12950055]
[1717505472938,0.75,3758.8,3758.7,0.807]
[1717505473230,0.75,3758.8,3758.6,0.0249275]
[1717505473409,4.391036,3758.8,3758.6,0.0249275]
[1717505474401,2.66049,3758.7,3758.6,0.0249275]
[1717505474634,5.66049,3758.7,3758.6,0.0249275]
[1717505475542,5.66049,3758.7,3758.6,0.8319275]
[1717505476109,5.66049,3758.7,3758.6,0.0249275]
[1717505477460,5.66049,3758.7,3758.6,0.12950055]
[1717505477865,6.301539,3758.7,3758.6,0.12950055]
[1717505478047,6.301539,3758.7,3758.6,0.8319275]
[1717505478405,8.622639,3758.7,3758.6,0.0249275]
[1717505479473,10.49390477,3758.7,3758.6,0.0249275]
[1717505479642,12.55190477,3758.7,3758.6,0.0249275]
[1717505480322,10.49390477,3758.7,3758.6,0.0249275]
[1717505480823,14.06456577,3758.7,3758.6,0.0249275]
[1717505481025,17.00251836,3758.7,3758.6,0.0249275]
[1717505481536,17.41104058,3758.7,3758.6,0.0249275]
[1717505481947,13.84037958,3758.7,3758.6,0.0249275]
[1717505482408,25.03061958,3758.7,3758.6,0.0249275]
[1717505482610,27.16359854,3758.7,3758.6,0.0249275]
[1717505483156,15.97335854,3758.7,3758.6,0.0249275]
[1717505483316,28.61661854,3758.7,3758.6,0.0249275]
[1717505484450,15.97335854,3758.7,3758.6,0.0249275]
[1717505484950,37.23919054,3758.7,3758.6,0.0249275]
[1717505485154,39.89968054,3758.7,3758.6,7.5e-06]
[1717505485452,18.63384854,3758.7,3758.6,7.5e-06]
[1717505485924,59.39208754,3758.7,3758.6,7.5e-06]
[1717505486255,2.66113,3757.8,3757.7,0.03608643]
[1717505486472,7.95750877,3757.8,3757.7,0.03608643]
[1717505486611,10.95750877,3757.8,3757.7,0.03608643]
[1717505486809,21.66948377,3757.8,3757.7,0.03608643]
[1717505487089,20.86948377,3757.8,3757.7,0.03608643]
[1717505487728,14.36863877,3757.8,3757.7,0.03608643]
[1717505487923,16.40207607,3757.8,3757.7,0.03608643]
[1717505488667,33.90193607,3757.8,3757.7,0.03608643]
[1717505489072,16.40207607,3757.8,3757.7,0.03608643]
[1717505489573,39.85794507,3757.8,3757.7,0.03608643]
[1717505489954,16.40207607,3757.8,3757.7,6.43e-06]
[1717505490150,19.47172829,3757.8,3757.7,6.43e-06]
[1717505490373,56.23342429,3757.8,3757.7,6.43e-06]
[1717505490558,55.45350729,3757.8,3757.7,6.43e-06]
[1717505490737,53.21845329,3757.8,3757.7,6.43e-06]
[1717505491170,51.88625629,3757.8,3757.7,6.43e-06]
[1717505491343,51.07925629,3757.8,3757.7,6.43e-06]
[1717505491549,46.31963629,3757.8,3757.7,6.43e-06]
[1717505491977,44.96263629,3757.8,3757.7,6.43e-06]
[1717505492185,29.36616407,3757.8,3757.7,6.43e-06]
[1717505492497,22.36621107,3757.8,3757.7,6.43e-06]
[1717505492860,18.89808107,3757.8,3757.7,6.43e-06]
[1717505493146,19.70508107,3757.8,3757.7,6.43e-06]
[1717505493375,20.25508107,3757.8,3757.7,6.43e-06]
[1717505493874,16.40207607,3757.8,3757.7,6.43e-06]
[1717505494442,15.59507607,3757.8,3757.7,6.43e-06]
[1717505494643,14.05007607,3757.8,3757.7,6.43e-06]
[1717505495876,10.58194607,3757.8,3757.7,6.43e-06]
[1717505496077,8.54850877,3757.8,3757.7,6.43e-06]
[1717505496577,9.63289468,3757.8,3757.7,6.43e-06]
[1717505496754,8.82589468,3757.8,3757.7,6.43e-06]
[1717505496953,9.63289468,3757.8,3757.7,6.43e-06]
[1717505497847,8.55978168,3757.8,3757.7,6.43e-06]
[1717505498047,6.68851591,3757.8,3757.7,6.43e-06]
[1717505498854,3.68851591,3757.8,3757.7,6.43e-06]
[1717505499082,3.68851591,3757.8,3757.7,0.10702205]
[1717505500265,6.68851591,3757.8,3757.7,0.10702205]
[1717505500453,6.68851591,3757.8,3757.7,6.43e-06]
[1717505500788,6.41113,3757.8,3757.7,6.43e-06]
[1717505501357,3.75,3757.8,3757.7,6.43e-06]
[1717505502460,3.75,3757.8,3757.7,0.10645285]
[1717505502897,3.75,3757.8,3757.7,2.50625285]
[1717505503099,2.66046,3758.8,3757.7,3.21690214]
[1717505503308,0.75,3758.1,3757.7,3.21690214]
[1717505504289,2.93782117,3758.8,3757.7,3.21690214]
[1717505504620,0.75,3758.2,3757.7,3.21690214]
[1717505506202,0.75,3758.2,3757.8,2.4367]
[1717505506391,0.75,3758.2,3757.9,0.78540421]
[1717505506597,0.75,3758.2,3757.9,0.89089232]
[1717505506901,3.0,3758.7,3758.0,2.3922]
[1717505507066,3.0,3758.7,3758.1,0.10548617]
[1717505507272,0.75,3758.5,3758.2,2.66083]